[Event "Early-Titled-Tuesday-Blitz-October-10-2023"]
[Site "Chess.com"]
[Date "2023.10.10"]
[Round "4"]
[White "Andrei_Skvortsov"]
[Black "lilleper1"]
[Result "0-1"]
[WhiteElo "2693"]
[BlackElo "2885"]
[TimeControl "180+1"]
[EndTime "8:39:26 PDT"]
[Termination "lilleper1 won by resignation"]

1. e4 {[%clk 0:03:00.9]} 1... c5 {[%clk 0:02:58.9]} 2. d4 {[%clk 0:03:01.2]}
2... cxd4 {[%clk 0:02:58.7]} 3. Qxd4 {[%clk 0:03:02.1]} 3... Nc6 {[%clk
0:02:57.9]} 4. Qd3 {[%clk 0:03:02.2]} 4... Nf6 {[%clk 0:02:52.9]} 5. Nc3 {[%clk
0:03:02.7]} 5... e6 {[%clk 0:02:50.1]} 6. Bf4 {[%clk 0:03:02.7]} 6... Bb4 {[%clk
0:02:38.5]} 7. O-O-O {[%clk 0:03:01.5]} 7... O-O {[%clk 0:02:30.9]} 8. Nge2
{[%clk 0:03:00.7]} 8... a6 {[%clk 0:01:55.2]} 9. f3 {[%clk 0:02:41.5]} 9... Qa5
{[%clk 0:01:37.8]} 10. a3 {[%clk 0:02:37.5]} 10... Be7 {[%clk 0:01:35.5]} 11.
Bd6 {[%clk 0:02:22.1]} 11... Ne5 {[%clk 0:01:29.7]} 12. Qd4 {[%clk 0:02:18.6]}
12... Bxd6 {[%clk 0:01:26.2]} 13. Qxd6 {[%clk 0:02:18]} 13... Nc4 {[%clk
0:01:23.8]} 14. Qb4 {[%clk 0:02:05.5]} 14... Qc7 {[%clk 0:01:16.3]} 15. Nd4
{[%clk 0:01:45]} 15... b5 {[%clk 0:01:16.3]} 16. Kb1 {[%clk 0:01:34.5]} 16...
Rb8 {[%clk 0:01:15.6]} 17. Ncxb5 {[%clk 0:01:25.3]} 17... axb5 {[%clk
0:00:58.7]} 18. Nxb5 {[%clk 0:01:25.2]} 18... Ne3 {[%clk 0:00:32.3]} 19. Nxc7
{[%clk 0:01:24.7]} 19... Rxb4 {[%clk 0:00:31.5]} 20. Rd3 {[%clk 0:00:56.6]}
20... Rb7 {[%clk 0:00:27.6]} 21. Nxe6 {[%clk 0:00:53.7]} 21... fxe6 {[%clk
0:00:15.7]} 22. Rxe3 {[%clk 0:00:53.8]} 22... d5 {[%clk 0:00:16.6]} 23. Ba6
{[%clk 0:00:44.1]} 23... Rb6 {[%clk 0:00:15.5]} 24. Bxc8 {[%clk 0:00:43.8]}
24... Rxc8 {[%clk 0:00:16.4]} 25. Rd1 {[%clk 0:00:34.7]} 25... Kf7 {[%clk
0:00:15.8]} 26. Rd2 {[%clk 0:00:20.3]} 26... g5 {[%clk 0:00:15.6]} 27. exd5
{[%clk 0:00:19.7]} 27... Nxd5 {[%clk 0:00:15.1]} 28. Re5 {[%clk 0:00:19.3]}
28... Kf6 {[%clk 0:00:14.3]} 29. Re1 {[%clk 0:00:15.9]} 29... Ra8 {[%clk
0:00:12.9]} 30. Ka2 {[%clk 0:00:15.2]} 30... Nb4+ {[%clk 0:00:09.7]} 31. Kb1
{[%clk 0:00:14.4]} 31... Nd5 {[%clk 0:00:09.8]} 32. c4 {[%clk 0:00:09.1]} 32...
Nf4 {[%clk 0:00:08.9]} 33. g3 {[%clk 0:00:08.4]} 33... Ng6 {[%clk 0:00:08.4]}
34. Ka2 {[%clk 0:00:08.7]} 34... Ne5 {[%clk 0:00:08.7]} 35. Rc2 {[%clk
0:00:08.2]} 35... Nxf3 {[%clk 0:00:08.2]} 36. Rf1 {[%clk 0:00:08.8]} 36... g4
{[%clk 0:00:08.7]} 37. h3 {[%clk 0:00:09.5]} 37... h5 {[%clk 0:00:08.6]} 38.
hxg4 {[%clk 0:00:09.8]} 38... hxg4 {[%clk 0:00:09.5]} 39. c5 {[%clk 0:00:08.5]}
39... Rba6 {[%clk 0:00:08.9]} 40. Rc4 {[%clk 0:00:06.8]} 40... Kg5 {[%clk
0:00:07.7]} 41. Rd1 {[%clk 0:00:05.9]} 41... e5 {[%clk 0:00:07.3]} 42. c6 {[%clk
0:00:04.7]} 42... Rc8 {[%clk 0:00:06.9]} 43. c7 {[%clk 0:00:05.3]} 43... Nd4
{[%clk 0:00:06.2]} 44. Re1 {[%clk 0:00:04.3]} 44... Kf5 {[%clk 0:00:06]} 45.
Rf1+ {[%clk 0:00:04.1]} 45... Ke6 {[%clk 0:00:06]} 46. Rh1 {[%clk 0:00:04.7]}
46... Kd5 {[%clk 0:00:06.1]} 47. Rc3 {[%clk 0:00:04.2]} 47... Rc6 {[%clk
0:00:05.9]} 48. Rh7 {[%clk 0:00:02.5]} 48... Rxc3 {[%clk 0:00:04.9]} 49. bxc3
{[%clk 0:00:03.4]} 49... Nb5 {[%clk 0:00:05.8]} 50. Rd7+ {[%clk 0:00:04]} 50...
Kc6 {[%clk 0:00:05.6]} 51. Rg7 {[%clk 0:00:04.6]} 51... Rxc7 {[%clk 0:00:04.7]}
52. Rg6+ {[%clk 0:00:04.3]} 52... Kd5 {[%clk 0:00:04.3]} 53. c4+ {[%clk
0:00:04.7]} 53... Rxc4 {[%clk 0:00:04]} 54. Kb3 {[%clk 0:00:05.6]} 54... Rc3+
{[%clk 0:00:04]} 55. Kb4 {[%clk 0:00:06.5]} 55... Rc5 {[%clk 0:00:03.4]} 56. a4
{[%clk 0:00:06]} 56... Nd4 {[%clk 0:00:03.2]} 57. Rxg4 {[%clk 0:00:06.5]} 57...
Nc6+ {[%clk 0:00:03]} 58. Kb3 {[%clk 0:00:06.7]} 58... Rc1 {[%clk 0:00:02.8]}
59. Rg8 {[%clk 0:00:05.5]} 59... Nd4+ {[%clk 0:00:03.2]} 60. Kb2 {[%clk
0:00:05.4]} 60... Rc2+ {[%clk 0:00:03.6]} 61. Ka3 {[%clk 0:00:05.6]} 61... Kc4
{[%clk 0:00:03.9]} 62. Rc8+ {[%clk 0:00:04.3]} 62... Kd3 {[%clk 0:00:04.1]} 63.
Rxc2 {[%clk 0:00:04.5]} 63... Nxc2+ {[%clk 0:00:04.3]} 64. Kb2 {[%clk
0:00:04.8]} 64... e4 {[%clk 0:00:05.1]} 65. a5 {[%clk 0:00:05.6]} 65... e3
{[%clk 0:00:05.7]} 66. a6 {[%clk 0:00:06.3]} 66... e2 {[%clk 0:00:06.3]} 67. a7
{[%clk 0:00:07.1]} 67... e1=Q {[%clk 0:00:06.7]} 68. a8=Q {[%clk 0:00:08]} 68...
Qc3+ {[%clk 0:00:05.3]} 69. Kb1 {[%clk 0:00:05.2]} 69... Qb3+ {[%clk 0:00:04.6]}
70. Kc1 {[%clk 0:00:05.1]} 70... Nd4 {[%clk 0:00:04.6]} 71. Qg2 {[%clk
0:00:03.8]} 71... Ne2+ {[%clk 0:00:03.7]} 72. Qxe2+ {[%clk 0:00:04.5]} 72...
Kxe2 {[%clk 0:00:04.5]} 0-1

[Event "Early-Titled-Tuesday-Blitz-October-10-2023"]
[Site "Chess.com"]
[Date "2023.10.10"]
[Round "4"]
[White "Rozhkov_V"]
[Black "sokidze"]
[Result "1-0"]
[WhiteElo "2438"]
[BlackElo "2784"]
[TimeControl "180+1"]
[EndTime "8:39:26 PDT"]
[Termination "Rozhkov_V won on time"]

1. e4 {[%clk 0:03:00.9]} 1... c5 {[%clk 0:02:59.7]} 2. Nf3 {[%clk 0:03:01.1]}
2... Nc6 {[%clk 0:02:59.9]} 3. d4 {[%clk 0:03:01.6]} 3... cxd4 {[%clk
0:03:00.6]} 4. Nxd4 {[%clk 0:03:02.5]} 4... g6 {[%clk 0:03:01.3]} 5. c4 {[%clk
0:03:02.3]} 5... Nf6 {[%clk 0:03:01.7]} 6. Nc3 {[%clk 0:03:01.4]} 6... d6 {[%clk
0:03:02.3]} 7. Be2 {[%clk 0:03:01.6]} 7... Nxd4 {[%clk 0:03:02.8]} 8. Qxd4
{[%clk 0:03:01.4]} 8... Bg7 {[%clk 0:03:03.7]} 9. Be3 {[%clk 0:03:01.6]} 9...
O-O {[%clk 0:03:04.2]} 10. Qd2 {[%clk 0:03:01.7]} 10... a5 {[%clk 0:03:04.7]}
11. O-O {[%clk 0:03:01.1]} 11... a4 {[%clk 0:03:04.8]} 12. Rab1 {[%clk
0:02:59.3]} 12... Qa5 {[%clk 0:02:59.8]} 13. Rfc1 {[%clk 0:02:59.4]} 13... Be6
{[%clk 0:02:45.4]} 14. f3 {[%clk 0:02:59.3]} 14... Rfc8 {[%clk 0:02:44.6]} 15.
b4 {[%clk 0:02:59.9]} 15... axb3 {[%clk 0:02:45.3]} 16. axb3 {[%clk 0:03:00.7]}
16... Qb4 {[%clk 0:02:46]} 17. Na4 {[%clk 0:02:52.8]} 17... Qxd2 {[%clk
0:02:36]} 18. Bxd2 {[%clk 0:02:53.7]} 18... Nd7 {[%clk 0:02:35.6]} 19. Be3
{[%clk 0:02:54.4]} 19... Rc6 {[%clk 0:02:19.4]} 20. Kf2 {[%clk 0:02:47.4]} 20...
Nc5 {[%clk 0:02:16.8]} 21. Nxc5 {[%clk 0:02:19.9]} 21... dxc5 {[%clk 0:02:16.8]}
22. b4 {[%clk 0:02:19.8]} 22... b6 {[%clk 0:01:58.7]} 23. bxc5 {[%clk
0:02:19.3]} 23... bxc5 {[%clk 0:01:59.6]} 24. Rc2 {[%clk 0:02:19.2]} 24... h5
{[%clk 0:01:27.7]} 25. Rb7 {[%clk 0:02:14.6]} 25... Kf8 {[%clk 0:01:21.4]} 26.
Rb5 {[%clk 0:01:59.7]} 26... Bd4 {[%clk 0:01:15.5]} 27. Rd2 {[%clk 0:01:07.7]}
27... Bc3 {[%clk 0:01:00.2]} 28. Rc2 {[%clk 0:01:03.2]} 28... Bd4 {[%clk
0:00:47.6]} 29. Rd2 {[%clk 0:01:03]} 29... Rd8 {[%clk 0:00:48.2]} 30. Ra2 {[%clk
0:00:43.7]} 30... Rdc8 {[%clk 0:00:22.8]} 31. Rd2 {[%clk 0:00:35]} 31... Bc3
{[%clk 0:00:18.1]} 32. Rc2 {[%clk 0:00:34.9]} 32... Bb4 {[%clk 0:00:18.4]} 33.
Ra2 {[%clk 0:00:33.1]} 33... f6 {[%clk 0:00:16.8]} 34. Ra7 {[%clk 0:00:31.1]}
34... R6c7 {[%clk 0:00:16.3]} 35. Rbb7 {[%clk 0:00:23.7]} 35... Rxb7 {[%clk
0:00:15.7]} 36. Rxb7 {[%clk 0:00:24.6]} 36... Kf7 {[%clk 0:00:15.4]} 37. Ra7
{[%clk 0:00:17.8]} 37... h4 {[%clk 0:00:14.9]} 38. g3 {[%clk 0:00:17.1]} 38...
hxg3+ {[%clk 0:00:14.8]} 39. hxg3 {[%clk 0:00:16.9]} 39... Rh8 {[%clk
0:00:15.5]} 40. Kg2 {[%clk 0:00:16.4]} 40... Bh3+ {[%clk 0:00:15.7]} 41. Kf2
{[%clk 0:00:16.7]} 41... Be6 {[%clk 0:00:13.3]} 42. Kg2 {[%clk 0:00:16.5]} 42...
Rc8 {[%clk 0:00:09.3]} 43. g4 {[%clk 0:00:13.9]} 43... g5 {[%clk 0:00:09.2]} 44.
Bf1 {[%clk 0:00:08]} 44... Bc3 {[%clk 0:00:09.1]} 45. Be2 {[%clk 0:00:06.2]}
45... Bd4 {[%clk 0:00:08]} 46. Kf2 {[%clk 0:00:05.5]} 46... Be5 {[%clk
0:00:04.3]} 47. Ra5 {[%clk 0:00:04.4]} 47... Bd6 {[%clk 0:00:04.7]} 48. Rb5
{[%clk 0:00:02.5]} 48... Bd7 {[%clk 0:00:04.6]} 49. Ra5 {[%clk 0:00:02.3]} 49...
Ke6 {[%clk 0:00:02]} 50. Ke1 {[%clk 0:00:02.6]} 50... Be8 {[%clk 0:00:02.2]} 51.
Kd2 {[%clk 0:00:02.8]} 51... Kd7 {[%clk 0:00:01.5]} 52. Ra7+ {[%clk 0:00:02.6]}
52... Ke6 {[%clk 0:00:02]} 53. Ra5 {[%clk 0:00:02.7]} 53... Kf7 {[%clk
0:00:01.7]} 54. Bd3 {[%clk 0:00:02.8]} 54... Bd7 {[%clk 0:00:01.9]} 55. Kc3
{[%clk 0:00:03.3]} 55... Be5+ {[%clk 0:00:02]} 56. Kd2 {[%clk 0:00:03.6]} 56...
Bd6 {[%clk 0:00:02.1]} 57. Ra6 {[%clk 0:00:02.3]} 57... Be6 {[%clk 0:00:01.8]}
58. Ra5 {[%clk 0:00:02.3]} 58... Rc7 {[%clk 0:00:02.4]} 59. Kc3 {[%clk 0:00:02]}
59... Kg7 {[%clk 0:00:02.8]} 60. Kd2 {[%clk 0:00:02.4]} 60... Rc8 {[%clk
0:00:02.7]} 61. Ra6 {[%clk 0:00:02.5]} 61... Rh8 {[%clk 0:00:02.6]} 62. Ra5
{[%clk 0:00:02.4]} 62... Rh2+ {[%clk 0:00:03.1]} 63. Kc3 {[%clk 0:00:03]} 63...
Be5+ {[%clk 0:00:02.6]} 64. Kb3 {[%clk 0:00:02.8]} 64... Rb2+ {[%clk 0:00:03]}
65. Ka3 {[%clk 0:00:02.6]} 65... Rb1 {[%clk 0:00:02]} 66. Bxb1 {[%clk
0:00:01.8]} 1-0

[Event "Early-Titled-Tuesday-Blitz-October-10-2023"]
[Site "Chess.com"]
[Date "2023.10.10"]
[Round "4"]
[White "IngOscarArdila"]
[Black "surrenderPLS"]
[Result "0-1"]
[WhiteElo "2317"]
[BlackElo "2514"]
[TimeControl "180+1"]
[EndTime "8:39:31 PDT"]
[Termination "surrenderPLS won on time"]

1. d4 {[%clk 0:02:59.1]} 1... Nf6 {[%clk 0:02:58.7]} 2. c4 {[%clk 0:02:59.3]}
2... e6 {[%clk 0:02:58.8]} 3. Nc3 {[%clk 0:02:59.6]} 3... Bb4 {[%clk 0:02:58.3]}
4. Bg5 {[%clk 0:02:59.2]} 4... h6 {[%clk 0:02:57.4]} 5. Bh4 {[%clk 0:02:59]}
5... c5 {[%clk 0:02:57.4]} 6. Nf3 {[%clk 0:02:47.4]} 6... cxd4 {[%clk
0:02:53.8]} 7. Qxd4 {[%clk 0:02:46.1]} 7... Nc6 {[%clk 0:02:53.1]} 8. Qd3 {[%clk
0:02:38.8]} 8... g5 {[%clk 0:02:47.5]} 9. Bg3 {[%clk 0:02:38.2]} 9... d5 {[%clk
0:02:45.8]} 10. e3 {[%clk 0:02:30.7]} 10... dxc4 {[%clk 0:02:16.6]} 11. Qxc4
{[%clk 0:02:20.3]} 11... Qd5 {[%clk 0:02:15]} 12. a3 {[%clk 0:01:48]} 12... Qxc4
{[%clk 0:02:12.3]} 13. Bxc4 {[%clk 0:01:47.5]} 13... Bxc3+ {[%clk 0:02:11.5]}
14. bxc3 {[%clk 0:01:47.1]} 14... Bd7 {[%clk 0:02:11.6]} 15. Ne5 {[%clk
0:01:22.9]} 15... Nxe5 {[%clk 0:01:22.5]} 16. Bxe5 {[%clk 0:01:21.5]} 16... Ke7
{[%clk 0:01:21.8]} 17. f4 {[%clk 0:00:51.5]} 17... Rac8 {[%clk 0:01:13.2]} 18.
Bd3 {[%clk 0:00:38.9]} 18... g4 {[%clk 0:00:49.3]} 19. Rb1 {[%clk 0:00:28]}
19... Bc6 {[%clk 0:00:47.3]} 20. O-O {[%clk 0:00:26.7]} 20... Rhd8 {[%clk
0:00:46.4]} 21. Rfd1 {[%clk 0:00:24.2]} 21... b6 {[%clk 0:00:34.3]} 22. Kf2
{[%clk 0:00:20]} 22... Rxd3 {[%clk 0:00:18.7]} 23. Rxd3 {[%clk 0:00:18.6]} 23...
Be4 {[%clk 0:00:19.1]} 24. Rbd1 {[%clk 0:00:18]} 24... Bxd3 {[%clk 0:00:19.1]}
25. Rxd3 {[%clk 0:00:18.9]} 25... Ne4+ {[%clk 0:00:19.3]} 26. Ke1 {[%clk
0:00:17.5]} 26... f6 {[%clk 0:00:19.2]} 27. Bd4 {[%clk 0:00:14.9]} 27... Rd8
{[%clk 0:00:19.4]} 28. Ke2 {[%clk 0:00:11]} 28... Rd5 {[%clk 0:00:14.6]} 29. c4
{[%clk 0:00:10.7]} 29... Rd7 {[%clk 0:00:14.3]} 30. a4 {[%clk 0:00:09.7]} 30...
Rc7 {[%clk 0:00:14]} 31. a5 {[%clk 0:00:07.4]} 31... bxa5 {[%clk 0:00:13.9]} 32.
Ra3 {[%clk 0:00:07]} 32... Rxc4 {[%clk 0:00:13]} 33. Rxa5 {[%clk 0:00:07]} 33...
Rc7 {[%clk 0:00:08.8]} 34. Rxa7 {[%clk 0:00:06.9]} 34... Rxa7 {[%clk 0:00:08.8]}
35. Bxa7 {[%clk 0:00:07.8]} 35... f5 {[%clk 0:00:09]} 36. Kd3 {[%clk 0:00:07.8]}
36... h5 {[%clk 0:00:09.4]} 37. Bd4 {[%clk 0:00:07.7]} 37... Kd6 {[%clk
0:00:10.3]} 38. Kc4 {[%clk 0:00:07.8]} 38... Nd2+ {[%clk 0:00:10.4]} 39. Kd3
{[%clk 0:00:08]} 39... Nf1 {[%clk 0:00:10.7]} 40. h3 {[%clk 0:00:07.8]} 40...
gxh3 {[%clk 0:00:10.8]} 41. gxh3 {[%clk 0:00:08.7]} 41... Kd5 {[%clk 0:00:11]}
42. Ke2 {[%clk 0:00:09]} 42... Ng3+ {[%clk 0:00:10.9]} 43. Kf3 {[%clk
0:00:09.3]} 43... Ne4 {[%clk 0:00:11.8]} 44. Be5 {[%clk 0:00:08.5]} 44... Kc4
{[%clk 0:00:11.9]} 45. Bd4 {[%clk 0:00:09]} 45... Kd3 {[%clk 0:00:12.1]} 46. Bb6
{[%clk 0:00:08.2]} 46... Nd2+ {[%clk 0:00:11.9]} 47. Kf2 {[%clk 0:00:08.1]}
47... Nc4 {[%clk 0:00:12.3]} 48. Bd4 {[%clk 0:00:07.6]} 48... Ke4 {[%clk
0:00:12.2]} 49. Bc5 {[%clk 0:00:07.5]} 49... Na5 {[%clk 0:00:10.9]} 50. Bb6
{[%clk 0:00:07]} 50... Nb3 {[%clk 0:00:11.8]} 51. Ba7 {[%clk 0:00:06.7]} 51...
Nc1 {[%clk 0:00:12]} 52. Bd4 {[%clk 0:00:04.9]} 52... Nd3+ {[%clk 0:00:12.9]}
53. Kg3 {[%clk 0:00:04.6]} 53... Nxf4 {[%clk 0:00:13]} 54. Bb6 {[%clk
0:00:02.8]} 54... Ng6 {[%clk 0:00:12.9]} 55. h4 {[%clk 0:00:02.9]} 55... Ne5
{[%clk 0:00:10.8]} 56. Ba7 {[%clk 0:00:03.4]} 56... Ng4 {[%clk 0:00:11]} 57. Bb6
{[%clk 0:00:04]} 57... Nxe3 {[%clk 0:00:11.1]} 58. Kf2 {[%clk 0:00:04.2]} 58...
f4 {[%clk 0:00:11.3]} 59. Bc7 {[%clk 0:00:03.8]} 59... Ng4+ {[%clk 0:00:10.6]}
60. Kg2 {[%clk 0:00:03.8]} 60... f3+ {[%clk 0:00:11.1]} 61. Kf1 {[%clk
0:00:04.4]} 61... Kd3 {[%clk 0:00:09.5]} 62. Bf4 {[%clk 0:00:04.3]} 62... e5
{[%clk 0:00:09.8]} 63. Bg5 {[%clk 0:00:04.4]} 63... e4 {[%clk 0:00:10]} 64. Bf4
{[%clk 0:00:04.4]} 64... e3 {[%clk 0:00:10.3]} 65. Kg1 {[%clk 0:00:04.4]} 65...
e2 {[%clk 0:00:10.5]} 66. Bg3 {[%clk 0:00:04]} 66... Ke3 {[%clk 0:00:10.8]} 67.
Kh1 {[%clk 0:00:02.4]} 67... f2 {[%clk 0:00:08.6]} 68. Bxf2+ {[%clk 0:00:01.7]}
68... Nxf2+ {[%clk 0:00:08.8]} 69. Kg2 {[%clk 0:00:01.4]} 69... e1=Q {[%clk
0:00:08.5]} 0-1

[Event "Early-Titled-Tuesday-Blitz-October-10-2023"]
[Site "Chess.com"]
[Date "2023.10.10"]
[Round "4"]
[White "Levanzovsky"]
[Black "Zavgorodniy_Sergiy"]
[Result "0-1"]
[WhiteElo "2419"]
[BlackElo "2630"]
[TimeControl "180+1"]
[EndTime "8:39:34 PDT"]
[Termination "Zavgorodniy_Sergiy won by resignation"]

1. e4 {[%clk 0:03:00.9]} 1... e5 {[%clk 0:02:59.9]} 2. Nf3 {[%clk 0:03:00.6]}
2... d6 {[%clk 0:03:00.6]} 3. Bc4 {[%clk 0:02:58.8]} 3... Be7 {[%clk 0:03:00.3]}
4. Nc3 {[%clk 0:02:59.2]} 4... Nf6 {[%clk 0:03:00.9]} 5. d3 {[%clk 0:02:59.8]}
5... O-O {[%clk 0:03:00.2]} 6. h3 {[%clk 0:02:59.3]} 6... c6 {[%clk 0:03:00.1]}
7. a4 {[%clk 0:02:58.6]} 7... d5 {[%clk 0:03:00.4]} 8. Bb3 {[%clk 0:02:57.5]}
8... dxe4 {[%clk 0:02:58.9]} 9. Nxe4 {[%clk 0:02:56.4]} 9... Nxe4 {[%clk
0:02:58]} 10. dxe4 {[%clk 0:02:57.3]} 10... Qxd1+ {[%clk 0:02:51.7]} 11. Kxd1
{[%clk 0:02:58.2]} 11... Nd7 {[%clk 0:02:52]} 12. Be3 {[%clk 0:02:57.1]} 12...
Nc5 {[%clk 0:02:47.7]} 13. Bxc5 {[%clk 0:02:56.7]} 13... Bxc5 {[%clk 0:02:46.9]}
14. Ke2 {[%clk 0:02:57.6]} 14... Re8 {[%clk 0:02:39]} 15. Ng5 {[%clk 0:02:29.2]}
15... Rf8 {[%clk 0:02:38.2]} 16. Nf3 {[%clk 0:02:27.3]} 16... Bd6 {[%clk
0:02:34.4]} 17. Rhd1 {[%clk 0:02:25.8]} 17... Bc7 {[%clk 0:02:34.6]} 18. a5
{[%clk 0:02:11.3]} 18... a6 {[%clk 0:02:33.6]} 19. Ng5 {[%clk 0:02:09.7]} 19...
h6 {[%clk 0:02:29]} 20. Nxf7 {[%clk 0:02:08.4]} 20... Rxf7 {[%clk 0:02:29.9]}
21. Rd3 {[%clk 0:02:08.4]} 21... Kf8 {[%clk 0:02:29.7]} 22. Bxf7 {[%clk
0:02:07.6]} 22... Kxf7 {[%clk 0:02:29.3]} 23. b4 {[%clk 0:02:04.5]} 23... Be6
{[%clk 0:02:27.1]} 24. Rf3+ {[%clk 0:02:03.8]} 24... Ke7 {[%clk 0:02:27.1]} 25.
Rd1 {[%clk 0:02:03.7]} 25... Rf8 {[%clk 0:02:17]} 26. Rxf8 {[%clk 0:01:59.9]}
26... Kxf8 {[%clk 0:02:16.2]} 27. c3 {[%clk 0:02:00.8]} 27... Ke7 {[%clk
0:02:15.7]} 28. Ke3 {[%clk 0:01:56.7]} 28... g5 {[%clk 0:02:14.5]} 29. f3 {[%clk
0:01:49]} 29... Bd6 {[%clk 0:02:13.9]} 30. Rb1 {[%clk 0:01:47.7]} 30... Kd7
{[%clk 0:02:10.4]} 31. Ke2 {[%clk 0:01:47.2]} 31... Kc7 {[%clk 0:02:10.4]} 32.
Kd3 {[%clk 0:01:42.7]} 32... c5 {[%clk 0:02:06.3]} 33. Rb2 {[%clk 0:01:36.3]}
33... cxb4 {[%clk 0:01:59.9]} 34. cxb4 {[%clk 0:01:36.2]} 34... Bd7 {[%clk
0:02:00.5]} 35. Kc3 {[%clk 0:01:34.7]} 35... Bb5 {[%clk 0:01:56.6]} 36. Rd2
{[%clk 0:01:33.2]} 36... Kd7 {[%clk 0:01:51.6]} 37. Kb3 {[%clk 0:01:32.9]} 37...
Ke6 {[%clk 0:01:51.1]} 38. Kc3 {[%clk 0:01:32.4]} 38... Bc6 {[%clk 0:01:51.1]}
39. Kb3 {[%clk 0:01:32.1]} 39... Ke7 {[%clk 0:01:51.6]} 40. Kc3 {[%clk
0:01:32.6]} 40... Bb8 {[%clk 0:01:52.1]} 41. Kb3 {[%clk 0:01:29.1]} 41... Ba7
{[%clk 0:01:52.6]} 42. Kc4 {[%clk 0:01:21.7]} 42... h5 {[%clk 0:01:44.6]} 43.
Rd1 {[%clk 0:01:20.5]} 43... Bd4 {[%clk 0:01:40.9]} 44. Rd2 {[%clk 0:01:12.3]}
44... Ke6 {[%clk 0:01:41]} 45. Rd1 {[%clk 0:01:12.1]} 45... Bb5+ {[%clk
0:01:41.2]} 46. Kb3 {[%clk 0:01:12.6]} 46... Kf6 {[%clk 0:01:38.2]} 47. Rc1
{[%clk 0:01:12.6]} 47... Bc6 {[%clk 0:01:37.5]} 48. Rf1 {[%clk 0:01:09.1]} 48...
Kg6 {[%clk 0:01:34.1]} 49. Rc1 {[%clk 0:01:08.2]} 49... g4 {[%clk 0:01:31.9]}
50. hxg4 {[%clk 0:01:08.5]} 50... hxg4 {[%clk 0:01:32]} 51. Rh1 {[%clk
0:01:08.8]} 51... Kg5 {[%clk 0:01:24.2]} 52. Kc4 {[%clk 0:01:06.2]} 52... Kf4
{[%clk 0:01:19.7]} 53. Rh6 {[%clk 0:00:49.6]} 53... g3 {[%clk 0:01:15]} 54. Rg6
{[%clk 0:00:40.8]} 54... Bf2 {[%clk 0:01:04.9]} 55. Kd3 {[%clk 0:00:41.1]} 55...
Bb5+ {[%clk 0:01:03.2]} 56. Kd2 {[%clk 0:00:41.8]} 56... Be3+ {[%clk 0:00:51.6]}
57. Kc3 {[%clk 0:00:42.1]} 57... Bc1 {[%clk 0:00:41.3]} 58. Rg4+ {[%clk
0:00:40.8]} 58... Ke3 {[%clk 0:00:41.9]} 59. Rxg3 {[%clk 0:00:41.7]} 59... Bd2+
{[%clk 0:00:42.1]} 60. Kc2 {[%clk 0:00:39]} 60... Bxb4 {[%clk 0:00:41.4]} 61.
Rg5 {[%clk 0:00:37.4]} 61... Kd4 {[%clk 0:00:39]} 62. Rg7 {[%clk 0:00:32.8]}
62... Bc6 {[%clk 0:00:37.3]} 63. g3 {[%clk 0:00:21.9]} 63... Bxa5 {[%clk
0:00:35.7]} 64. Kb3 {[%clk 0:00:22.5]} 64... Ke3 {[%clk 0:00:32.1]} 65. Rf7
{[%clk 0:00:22.9]} 65... Bd8 {[%clk 0:00:29]} 66. Rf5 {[%clk 0:00:21.3]} 66...
Kd4 {[%clk 0:00:27.8]} 67. g4 {[%clk 0:00:20.7]} 67... a5 {[%clk 0:00:26.7]} 68.
g5 {[%clk 0:00:21]} 68... a4+ {[%clk 0:00:26.3]} 69. Ka2 {[%clk 0:00:20.3]}
69... Bb5 {[%clk 0:00:25.8]} 70. g6 {[%clk 0:00:20.6]} 70... Bc4+ {[%clk
0:00:26]} 71. Ka1 {[%clk 0:00:20.9]} 71... a3 {[%clk 0:00:25.9]} 72. g7 {[%clk
0:00:17.4]} 72... Ba5 {[%clk 0:00:25.5]} 73. Rf6 {[%clk 0:00:07.6]} 73... Bc3+
{[%clk 0:00:25.4]} 74. Kb1 {[%clk 0:00:08.3]} 74... a2+ {[%clk 0:00:26]} 75. Kc2
{[%clk 0:00:09.1]} 75... a1=Q {[%clk 0:00:24.8]} 76. Rd6+ {[%clk 0:00:08.6]}
76... Ke3 {[%clk 0:00:25]} 0-1